bitfinex-derivatives/quotes_SOLF0:USTF0_20260204
["timestamp","ask_amount","ask_price","bid_price","bid_amount"]
[1770228426917,61.83014004,91.249,91.098,154.0044]
[1770228427210,61.83014004,91.223,91.137,9.896]
[1770228427612,61.83014004,91.209,91.1,7.52814258]
[1770228428210,61.82566294,91.206,91.131,9.8966]
[1770228428409,61.82566294,91.206,91.1,7.52814258]
[1770228429216,61.82566294,91.206,91.144,0.07005949]
[1770228429916,61.82566294,91.206,91.12,7.52814258]
[1770228430417,6.294e-05,91.206,91.14,7.52814258]
[1770228430917,6.294e-05,91.206,91.121,19.7956]
[1770228431411,153.6162,91.329,91.164,0.06921053]
[1770228431614,7.52814258,91.25,91.164,0.06921053]
[1770228431919,7.52814258,91.25,91.12,7.52814258]
[1770228432117,9.8875,91.216,91.149,9.8947]
[1770228432417,30.92685119,91.215,91.149,9.8947]
[1770228432618,30.92685119,91.21,91.149,9.8947]
[1770228433017,30.92685119,91.21,91.136,9.896]
[1770228433318,30.93243048,91.196,91.08,7.52814258]
[1770228433520,30.93243048,91.189,91.06,7.52814258]
[1770228433818,30.897436,91.157,91.06,7.52814258]
[1770228434015,30.897436,91.157,91.095,9.9005]
[1770228434418,30.897436,91.157,91.063,19.8082]
[1770228434619,30.897436,91.157,91.114,9.8984]
[1770228434912,14.128336,91.157,91.08,7.52814258]
[1770228435114,7.52814258,91.22,91.08,7.52814258]
[1770228435320,1.90935502,91.217,91.08,7.52814258]
[1770228435621,9.8899,91.194,91.125,9.8973]
[1770228435823,118.0,91.238,91.069,154.0534]
[1770228435824,118.0,91.238,91.1,7.52814258]
[1770228436013,1.90889419,91.237,91.1,7.52814258]
[1770228436421,9.8876,91.215,91.11,7.50975506]
[1770228436824,7.50975506,91.24,91.13,7.50975506]
[1770228437022,22.50647745,91.234,91.13,7.50975506]
[1770228438222,22.53367041,91.219,91.12,7.50975506]
[1770228438618,22.53367041,91.219,91.113,19.7972]
[1770228438821,22.53367041,91.219,91.079,154.0364]
[1770228438822,22.53367041,91.219,91.11,7.50975506]
[1770228439220,22.55120201,91.195,91.09,7.50975506]
[1770228439924,22.55120201,91.191,91.064,154.0609]
[1770228440126,22.55120201,91.191,91.08,7.50975506]
[1770228440825,22.60131063,91.188,91.122,9.8976]
[1770228442126,22.60131063,91.188,91.133,9.8964]
[1770228442320,22.60131063,91.188,91.1,7.50975506]
[1770228442726,22.60131063,91.188,91.126,9.8972]
[1770228443222,22.60131063,91.188,91.1,7.50975506]
[1770228443623,22.60131063,91.188,91.148,0.07039431]
[1770228443928,22.18487574,91.209,91.148,0.07039431]
[1770228444129,22.18773186,91.249,91.148,0.07039431]
[1770228444325,22.18773186,91.249,91.14,7.50975506]
[1770228444519,22.18773186,91.245,91.14,7.50975506]
[1770228444722,4.95323186,91.245,91.18,7.50975506]
[1770228444927,7.50975506,91.3,91.18,7.50975506]
[1770228445125,9.8786,91.298,91.18,7.50975506]
[1770228445626,1.90721508,91.317,91.205,9.8886]
[1770228445834,7.50975506,91.31,91.18,7.50975506]
[1770228446332,7.50975506,91.33,91.2,7.50975506]
[1770228446533,1.90705831,91.327,91.2,7.50975506]
[1770228446727,13.67210641,91.311,91.23,9.8859]
[1770228446928,13.67210641,91.311,91.19,7.50975506]
[1770228447334,13.67761204,91.292,91.219,9.8871]
[1770228447638,13.67761204,91.292,91.19,7.50975506]
[1770228447827,13.72819567,91.287,91.19,7.50975506]
[1770228448130,14.68167257,91.379,91.265,153.7219]
[1770228448329,14.68167257,91.379,91.243,153.7587]
[1770228448537,14.68167257,91.379,91.24,7.50975506]
[1770228448833,7.50975506,91.38,91.24,7.50975506]
[1770228448834,14.68167257,91.359,91.24,7.50975506]
[1770228449034,14.68824649,91.358,91.267,9.8819]
[1770228449730,14.68824649,91.358,91.25,9.8838]
[1770228449935,14.44471603,91.339,91.25,9.8838]
[1770228450238,14.44471603,91.318,91.214,9.8877]
[1770228450432,14.44471603,91.299,91.18,7.50975506]
[1770228450636,14.44471603,91.279,91.16,7.50975506]
[1770228451435,14.44471603,91.279,91.194,9.8897]
[1770228451635,14.44492591,91.269,91.15,7.50975506]
[1770228451835,14.44492591,91.249,91.13,7.50975506]
[1770228452840,14.64833032,91.246,91.162,9.8932]
[1770228453439,14.64833032,91.246,91.148,9.8948]
[1770228453943,14.73718535,91.229,91.148,9.8948]
[1770228454437,14.73718535,91.229,91.1,153.9999]
[1770228454438,14.73718535,91.214,91.09,7.50975506]
[1770228454936,14.7417309,91.21,91.09,7.50975506]
[1770228455132,14.7417309,91.209,91.09,7.50975506]
[1770228455730,14.7417309,91.205,91.123,9.8975]
[1770228455935,14.7417309,91.205,91.09,7.50975506]
[1770228456132,14.7417309,91.205,91.136,9.8961]
[1770228456541,14.7417309,91.205,91.11,7.50975506]
[1770228456841,14.7417309,91.205,91.148,9.8948]
[1770228457034,14.7417309,91.205,91.13,7.50975506]
[1770228457439,14.71183748,91.237,91.15,7.50975506]
[1770228457743,14.71183748,91.289,91.211,0.22802658]
[1770228458641,14.71183748,91.289,91.184,1.11663668]
[1770228459144,14.71183748,91.289,91.207,9.8884]
[1770228459442,14.71183748,91.289,91.2,7.50975506]
[1770228459644,14.71183748,91.289,91.214,9.8876]
[1770228459844,14.71183748,91.289,91.201,1.52088789]
[1770228460044,14.71183748,91.289,91.22,9.18713552]
[1770228460340,14.71183748,91.289,91.231,9.8857]
[1770228460940,14.71183748,91.289,91.22,1.67738046]
[1770228461139,9.8738,91.343,91.24,7.50975506]
[1770228461344,9.8738,91.343,91.241,10.36364665]
[1770228461848,9.8738,91.343,91.256,9.8831]
[1770228462042,9.8721,91.358,91.256,9.8831]
[1770228462544,9.8721,91.358,91.269,9.8816]
[1770228462948,9.8721,91.358,91.241,10.36364665]
[1770228463140,9.8724,91.356,91.241,10.36364665]
[1770228463337,10.11436481,91.355,91.241,10.36364665]
[1770228464147,10.11436481,91.328,91.254,9.8833]
[1770228464347,10.11436481,91.328,91.22,7.50975506]
[1770228464641,10.11436481,91.328,91.221,10.36364665]
[1770228464841,10.11436481,91.325,91.253,9.8834]
[1770228465042,10.11436481,91.325,91.241,10.36364665]
[1770228465344,10.11436481,91.325,91.277,9.8808]
[1770228465644,9.873,91.35,91.277,9.8808]
[1770228465844,10.11436481,91.408,91.301,10.36364665]
[1770228466343,9.8714,91.365,91.283,9.8802]
[1770228466544,10.11436481,91.364,91.277,10.36364665]
[1770228466946,10.11436481,91.35,91.252,10.36364665]
[1770228467544,10.11436481,91.35,91.281,9.8803]
[1770228468553,19.98746481,91.35,91.265,9.8821]
[1770228468851,10.11436481,91.349,91.252,10.36364665]
[1770228469053,10.11436481,91.349,91.277,9.8808]
[1770228469252,10.11436481,91.349,91.298,0.06949477]
[1770228469758,10.11436481,91.347,91.252,10.36364665]
[1770228469954,10.11436481,91.347,91.227,10.36364665]
[1770228470253,10.11436481,91.327,91.249,9.8839]
[1770228470650,10.11436481,91.324,91.236,9.8853]
[1770228471049,10.11436481,91.324,91.227,10.36364665]
[1770228471357,10.11436481,91.305,91.228,9.8861]
[1770228471552,10.11436481,91.305,91.21,7.50975506]
[1770228471747,10.11436481,91.305,91.202,10.36364665]
[1770228471947,10.11436481,91.292,91.202,10.36364665]
[1770228472149,10.11436481,91.292,91.211,10.36364665]
[1770228472354,10.11436481,91.292,91.243,9.8845]
[1770228472653,10.11436481,91.292,91.211,10.36364665]
[1770228473161,10.11436481,91.286,91.211,10.36364665]
[1770228473358,10.11436481,91.286,91.181,10.36364665]
[1770228473752,10.11436481,91.27,91.193,9.8899]
[1770228473953,10.11436481,91.27,91.181,10.36364665]
[1770228474352,10.11436481,91.27,91.207,9.8884]
[1770228475563,10.11436481,91.27,91.202,16.67364466]
[1770228475864,17.16347285,91.292,91.202,16.67364466]
[1770228476062,10.00851073,91.36,91.19,7.50975506]
[1770228476063,17.16347285,91.314,91.211,16.67364466]
[1770228476264,17.16347285,91.309,91.181,16.67364466]
[1770228476553,17.16347285,91.309,91.201,16.67364466]
[1770228476757,17.16347285,91.309,91.221,16.67364466]
[1770228477366,7.50975506,91.35,91.221,16.67364466]
[1770228477367,17.16347285,91.307,91.234,9.8855]
[1770228477967,9.8775,91.308,91.234,9.8855]
[1770228477968,17.16347285,91.304,91.234,9.8855]
[1770228478565,9.8794,91.291,91.222,9.8868]
[1770228478868,27.00827864,91.291,91.222,9.8868]
[1770228479170,17.12887864,91.302,91.243,9.8845]
[1770228479364,17.12887864,91.302,91.2,7.50975506]
[1770228479561,17.12887864,91.302,91.201,17.81821201]
[1770228479871,17.12887864,91.294,91.201,17.81821201]
[1770228480466,17.12887864,91.291,91.201,17.81821201]
[1770228480666,7.50975506,91.34,91.221,17.81821201]
[1770228480865,9.41592024,91.36,91.241,17.81821201]
[1770228481077,9.41592024,91.36,91.218,17.81821201]
[1770228481265,7.50975506,91.33,91.218,17.81821201]
[1770228481767,7.50975506,91.31,91.195,17.81821201]
[1770228481962,7.50975506,91.29,91.195,17.81821201]
[1770228482362,7.50975506,91.29,91.173,17.81821201]
[1770228482665,17.12887864,91.269,91.173,17.81821201]
[1770228483171,17.12887864,91.247,91.173,17.81821201]
[1770228483372,17.12887864,91.247,91.142,17.81821201]
[1770228484064,17.12887864,91.247,91.12,7.50975506]
[1770228484265,17.12887864,91.247,91.117,17.81821201]
[1770228484266,17.12887864,91.229,91.117,17.81821201]
[1770228484467,17.12887864,91.209,91.095,17.81821201]
[1770228484870,17.12887864,91.184,91.113,9.8986]
[1770228485265,17.12887864,91.17,91.08,7.50975506]
[1770228485471,17.12887864,91.169,91.069,17.81821201]
[1770228485876,17.12887864,91.158,91.071,9.9031]
[1770228486067,17.12887864,91.158,91.069,17.81821201]
[1770228486272,17.12887864,91.142,91.057,9.9046]
[1770228486468,17.12887864,91.139,91.018,17.81821201]
[1770228486772,17.12887864,91.099,90.981,17.81821201]
[1770228486970,17.12887864,91.092,90.999,9.911]
[1770228487670,9.9014,91.088,90.999,9.911]
[1770228487868,17.12887864,91.087,90.999,9.911]
[1770228488069,17.12887864,91.087,91.0,17.81821201]
[1770228488268,9.9019,91.083,91.003,9.9106]
[1770228488468,17.12887864,91.082,91.0,17.81821201]
[1770228488666,17.12887864,91.082,90.971,17.81821201]
[1770228489176,17.12887864,91.082,90.991,17.81821201]
[1770228489766,17.12887864,91.082,91.001,17.81821201]
[1770228489967,17.12887864,91.106,91.001,17.81821201]
[1770228490268,17.12887864,91.105,91.029,9.9077]
[1770228490474,17.12887864,91.105,91.029,17.81821201]
[1770228490775,17.12887864,91.149,91.031,17.81821201]
[1770228490978,17.12887864,91.133,91.031,17.81821201]
[1770228491578,17.12887864,91.133,91.007,154.158]
[1770228491579,17.12887864,91.133,91.053,27.72331201]
[1770228492075,17.12887864,91.133,91.069,9.9034]
[1770228492776,17.12887864,91.133,91.029,17.81821201]
[1770228493173,17.12887864,91.133,91.045,9.906]
[1770228493680,17.12887864,91.127,91.045,27.72421201]
[1770228493976,17.12887864,91.127,91.057,9.9047]
[1770228494380,17.12887864,91.127,91.051,9.9053]
[1770228494572,9.8986,91.114,91.045,17.81821201]
[1770228494870,17.12887864,91.113,91.022,17.81821201]
[1770228495177,17.12887864,91.113,91.029,25.0]
[1770228495373,17.12887864,91.113,91.03,17.81821201]
[1770228495579,17.12887864,91.113,91.03,27.72581201]
[1770228495976,17.12887864,91.099,91.029,25.0]
[1770228497676,17.12887864,91.099,91.03,17.81821201]
[1770228498283,17.12887864,91.099,91.03,25.34570312]
[1770228498482,17.12887864,91.139,91.055,9.9048]
[1770228498976,9.896,91.138,91.066,9.9037]
[1770228499172,17.12887864,91.137,91.066,9.9037]
[1770228500882,9.8968,91.13,91.066,9.9037]
[1770228501179,17.12887864,91.137,91.077,9.9025]
[1770228501588,17.12887864,91.135,91.066,9.9037]
[1770228501780,17.12887864,91.135,91.051,17.81821201]
[1770228502288,27.02527864,91.134,91.065,9.9038]
[1770228502486,17.12887864,91.133,91.065,9.9038]
[1770228503090,17.12887864,91.133,91.074,9.9028]
[1770228503289,17.12887864,91.133,91.051,17.81821201]
[1770228504690,23.35250793,91.169,91.051,17.81821201]
[1770228504986,23.35250793,91.169,91.081,23.75295209]
[1770228505185,23.35250793,91.169,91.114,9.8985]
[1770228505385,23.35250793,91.169,91.081,23.75295209]
[1770228505786,23.35250793,91.169,91.06,154.0686]
[1770228505787,23.35250793,91.169,91.126,9.8972]
[1770228506189,23.35250793,91.193,91.126,23.75295209]
[1770228506486,23.35250793,91.193,91.101,23.75295209]
[1770228507290,23.35250793,91.175,91.077,23.75295209]
[1770228507484,23.35250793,91.175,91.056,23.75295209]
[1770228507782,23.35250793,91.13,91.056,33.65765209]
[1770228507984,23.35250793,91.13,91.033,23.75295209]
[1770228508485,23.35250793,91.117,91.033,23.75295209]
[1770228509486,23.35250793,91.117,91.0,7.52749111]
[1770228509487,9.8986,91.114,91.035,23.75295209]
[1770228509686,23.35250793,91.113,91.035,23.75295209]
[1770228510193,23.35250793,91.097,90.987,23.75295209]
[1770228510890,23.35250793,91.073,90.996,9.9114]
[1770228511390,23.35250793,91.058,90.966,33.66755209]
[1770228511689,23.35250793,91.058,90.893,154.351]
[1770228511690,23.35250793,91.058,90.943,23.75295209]
[1770228511886,23.35250793,91.026,90.948,9.9166]
[1770228512491,5.87999904,91.06,90.948,9.9166]
[1770228512894,9.9066,91.04,90.96,9.9152]
[1770228513090,7.52749111,91.08,90.943,23.75295209]
[1770228513288,7.52749111,91.06,90.943,23.75295209]
[1770228513892,7.52749111,91.04,90.944,9.917]
[1770228514090,7.52749111,91.04,90.943,23.75295209]
[1770228514596,20.70260279,91.019,90.919,23.75295209]
[1770228515494,21.08604617,91.002,90.919,23.75295209]
[1770228516085,21.09148224,91.032,90.934,23.75295209]
[1770228516394,21.09148224,91.056,90.951,23.75295209]
[1770228516591,9.905,91.055,90.978,9.9133]
[1770228516790,161.49679111,91.12,90.972,23.75295209]
[1770228516791,21.09148224,91.079,90.972,23.75295209]
[1770228517093,30.99388224,91.079,90.991,23.75295209]
[1770228517292,7.52749111,91.1,90.991,23.75295209]
[1770228517293,21.463243,91.078,90.991,23.75295209]
[1770228517593,21.463243,91.078,90.971,23.75295209]
[1770228517792,21.463243,91.118,91.011,23.75295209]
[1770228517990,21.463243,91.118,90.988,23.75295209]
[1770228518192,23.35250793,91.099,90.988,23.75295209]
[1770228518494,23.35250793,91.075,90.991,23.75295209]
[1770228518894,9.9031,91.072,90.995,9.9114]
[1770228519091,33.25560793,91.072,90.995,9.9114]
[1770228519291,23.35250793,91.071,90.961,23.75295209]
[1770228519593,23.35250793,91.067,90.961,23.75295209]
[1770228519794,153.9293,91.143,90.966,23.75295209]
[1770228519795,20.18283872,91.13,90.966,23.75295209]
[1770228519988,23.35250793,91.127,90.966,23.75295209]
[1770228520189,23.35250793,91.083,91.007,9.9101]
[1770228520593,23.35250793,91.083,90.988,23.75295209]
[1770228520893,9.9047,91.058,90.988,23.75295209]
[1770228521096,23.35250793,91.057,90.964,23.75295209]
[1770228521297,9.9069,91.038,90.965,9.9147]
[1770228521794,23.35250793,91.057,90.964,23.75295209]
[1770228522497,23.35250793,91.055,90.977,9.9133]
[1770228522790,23.35250793,91.055,90.913,154.3178]
[1770228522791,23.35250793,91.055,90.938,23.75295209]
[1770228523189,9.9088,91.02,90.953,9.916]
[1770228523395,33.26130793,91.02,90.953,9.916]
[1770228523696,33.26130793,91.02,90.94,9.9174]
[1770228523897,23.35250793,91.011,90.94,9.9174]
[1770228524097,23.35250793,91.011,90.913,23.75295209]
[1770228524395,23.35250793,90.979,90.895,23.75295209]
[1770228524692,23.35250793,91.003,90.895,23.75295209]
[1770228524890,23.35250793,91.003,90.94,9.9174]
[1770228525598,23.35250793,90.999,90.891,23.75295209]
[1770228526502,23.35250793,90.999,90.827,19.8595]
[1770228526697,23.35250793,90.984,90.828,23.75295209]
[1770228526895,23.35250793,90.984,90.844,1.91431778]
[1770228527096,23.35250793,90.984,90.845,23.75295209]
[1770228527297,23.35250793,90.962,90.88,23.75295209]
[1770228528500,9.9164,90.95,90.883,9.9237]
[1770228528796,23.35250793,90.949,90.82,23.75295209]
[1770228528994,9.9184,90.932,90.852,23.75295209]
[1770228529201,23.35250793,90.949,90.852,23.75295209]
[1770228529600,23.35250793,91.009,90.852,23.75295209]
[1770228529900,23.35250793,90.972,90.891,23.75295209]
[1770228530295,9.9143,90.969,90.893,23.75295209]
[1770228530800,23.35250793,90.972,90.893,23.75295209]
[1770228530991,23.35250793,90.958,90.878,9.9241]
[1770228531196,23.35250793,90.958,90.878,23.75295209]
[1770228531497,23.35250793,90.954,90.851,23.75295209]
[1770228532001,23.35250793,90.977,90.851,23.75295209]
[1770228532203,23.35250793,90.974,90.893,9.9226]
[1770228532403,23.35250793,90.974,90.861,23.75295209]
[1770228532798,23.35250793,90.943,90.865,9.9256]
[1770228532993,23.35250793,90.943,90.866,23.75295209]
[1770228533195,23.35250793,90.966,90.866,23.75295209]
[1770228533500,23.35250793,90.965,90.866,23.75295209]
[1770228533703,23.35250793,90.965,90.839,27.3312707]
[1770228533899,9.919,90.927,90.858,27.3312707]
[1770228534204,26.64598487,90.926,90.836,27.3312707]
[1770228534400,26.64598487,90.92,90.847,9.9276]
[1770228534793,26.64598487,90.92,90.836,27.3312707]
[1770228535596,9.9201,90.916,90.848,9.9275]
[1770228535801,26.64598487,90.92,90.849,27.3312707]
[1770228535997,26.64598487,90.943,90.849,27.3312707]
[1770228536198,20.18283872,90.97,90.867,9.9254]
[1770228536199,36.56358487,90.939,90.867,9.9254]
[1770228536400,26.64598487,90.938,90.849,27.3312707]
[1770228537004,26.64598487,90.938,90.861,9.926]
[1770228537302,26.64598487,90.938,90.81,20.18283872]
[1770228537303,26.64598487,90.938,90.835,27.3312707]
[1770228537604,26.64598487,90.914,90.811,27.3312707]
[1770228537998,26.64598487,90.914,90.846,9.9277]
[1770228537999,9.9206,90.912,90.846,9.9277]
[1770228538196,26.64598487,90.936,90.847,27.3312707]
[1770228538601,26.64598487,90.936,90.867,9.9253]
[1770228538602,9.9182,90.934,90.867,9.9253]
[1770228538803,29.15931578,90.933,90.867,9.9253]
[1770228539004,29.15931578,90.933,90.847,27.3312707]
[1770228541105,9.9213,90.905,90.847,27.3312707]
[1770228541399,29.15931578,90.933,90.847,27.3312707]
[1770228541602,7.5553529,90.96,90.819,28.35225326]
[1770228541603,29.15931578,90.906,90.819,28.35225326]
[1770228541805,29.15931578,90.899,90.819,28.35225326]
[1770228542106,29.15931578,90.876,90.785,28.35225326]
[1770228542612,9.9263,90.86,90.785,28.35225326]
[1770228542807,29.15931578,90.876,90.785,28.35225326]
[1770228543306,29.15931578,90.899,90.812,28.35225326]
[1770228543795,29.15931578,90.877,90.804,9.9323]
[1770228543999,29.15931578,90.877,90.754,21.79173601]
[1770228544000,29.15931578,90.877,90.766,28.35225326]
[1770228544196,29.15931578,90.859,90.766,28.35225326]
[1770228544802,9.9291,90.834,90.766,38.28875326]
[1770228545007,29.15931578,90.838,90.766,28.35225326]
[1770228545510,9.9302,90.824,90.766,28.35225326]
[1770228545910,29.15931578,90.838,90.741,28.35225326]
[1770228546106,29.15931578,90.819,90.741,28.35225326]
[1770228546708,9.9311,90.816,90.741,28.35225326]
[1770228547104,9.9311,90.816,90.745,9.9387]
[1770228547306,9.9321,90.806,90.741,28.35225326]
[1770228547608,29.15931578,90.819,90.741,28.35225326]
[1770228547805,9.932,90.807,90.742,9.939]
[1770228548008,29.15931578,90.819,90.741,28.35225326]
[1770228548407,9.9322,90.806,90.741,28.35225326]
[1770228549108,7.5553529,90.84,90.704,1.91703851]
[1770228549109,29.15931578,90.792,90.718,28.35225326]
[1770228549810,29.15931578,90.829,90.718,28.35225326]
[1770228550406,7.5553529,90.8,90.718,28.35225326]
[1770228550609,29.15931578,90.799,90.695,28.35225326]
[1770228550805,9.9377,90.756,90.695,28.35225326]
[1770228551110,29.15931578,90.739,90.629,28.35225326]
[1770228551308,29.15931578,90.719,90.629,28.35225326]
[1770228551507,29.15931578,90.719,90.631,28.35225326]
[1770228551704,29.15931578,90.769,90.641,28.35225326]
[1770228552006,29.15931578,90.733,90.649,28.35225326]
[1770228552408,29.15931578,90.756,90.651,28.35225326]
[1770228552913,9.9405,90.73,90.658,9.9482]
[1770228553109,9.9405,90.73,90.651,28.35225326]
[1770228553413,29.15931578,90.756,90.651,28.35225326]
[1770228554313,154.5105,90.8,90.665,28.35225326]
[1770228554314,29.15931578,90.746,90.665,28.35225326]
[1770228555113,29.15931578,90.746,90.667,28.35225326]
[1770228555310,29.15931578,90.746,90.644,28.35225326]
[1770228555510,9.9418,90.718,90.647,28.35225326]
[1770228555711,29.15931578,90.746,90.647,28.35225326]
[1770228556206,9.9418,90.718,90.647,28.35225326]
[1770228556411,29.15931578,90.725,90.647,28.35225326]
[1770228556604,29.15931578,90.725,90.614,28.35225326]
[1770228557204,9.9431,90.706,90.627,28.35225326]
[1770228557803,9.9431,90.706,90.613,1.91916351]
[1770228557804,9.9431,90.706,90.63,38.30365326]
[1770228558003,29.15931578,90.689,90.613,1.91916351]
[1770228558204,29.15931578,90.689,90.605,28.35225326]
[1770228558409,29.15931578,90.669,90.583,28.35225326]
[1770228558715,9.9497,90.646,90.583,28.35225326]
[1770228558915,29.15931578,90.669,90.583,28.35225326]
[1770228559114,29.15931578,90.649,90.559,28.35225326]
[1770228559308,29.15931578,90.629,90.501,28.35225326]
[1770228559515,29.15931578,90.609,90.501,28.35225326]
[1770228559810,9.9557,90.591,90.501,28.35225326]
[1770228560010,29.15931578,90.609,90.537,28.35225326]
[1770228560216,29.15931578,90.609,90.514,28.35225326]
[1770228560411,9.9584,90.567,90.494,28.35225326]
[1770228560715,29.15931578,90.585,90.497,28.35225326]
[1770228561216,29.15931578,90.585,90.517,28.35225326]
[1770228561618,29.15931578,90.585,90.532,9.9621]
[1770228562019,29.15931578,90.611,90.532,9.9621]
[1770228562414,29.15931578,90.611,90.544,9.9608]
[1770228562612,29.15931578,90.638,90.545,28.35225326]
[1770228562818,29.15931578,90.605,90.54,9.9612]
[1770228563123,154.7198,90.678,90.541,28.35225326]
[1770228563124,29.15931578,90.63,90.541,28.35225326]
[1770228563330,39.11071578,90.63,90.546,28.35225326]
[1770228563821,29.15931578,90.63,90.546,28.35225326]
[1770228564024,29.84389511,90.619,90.523,30.78137799]
[1770228564324,29.84389511,90.619,90.464,155.0839]
[1770228564325,29.84389511,90.529,90.393,30.78137799]
[1770228564517,29.84389511,90.509,90.381,30.78137799]
[1770228564717,29.84389511,90.489,90.381,30.78137799]
[1770228564919,29.84389511,90.489,90.361,30.78137799]
[1770228565317,9.9653,90.504,90.381,30.78137799]
[1770228565521,29.84389511,90.503,90.381,30.78137799]
[1770228566023,29.84389511,90.529,90.401,30.78137799]
[1770228566420,9.9622,90.532,90.401,30.78137799]
[1770228566627,29.84389511,90.555,90.401,30.78137799]
[1770228567022,29.84389511,90.555,90.411,30.78137799]
[1770228567523,29.84389511,90.552,90.415,30.78137799]
[1770228567727,29.84389511,90.545,90.415,30.78137799]
[1770228567927,29.84389511,90.524,90.415,30.78137799]
[1770228568124,154.9938,90.517,90.357,9.9814]
[1770228568330,29.84389511,90.466,90.358,30.78137799]
[1770228568527,29.84389511,90.462,90.358,30.78137799]
[1770228568831,29.84389511,90.444,90.331,30.78137799]
[1770228570724,29.84389511,90.441,90.331,30.78137799]
[1770228571724,29.84389511,90.479,90.335,30.78137799]
[1770228571925,29.84389511,90.479,90.337,30.78137799]
[1770228572225,29.84389511,90.479,90.345,30.78137799]
[1770228572625,29.84389511,90.479,90.353,30.78137799]
[1770228573127,29.84389511,90.479,90.377,30.78137799]
[1770228573634,29.84389511,90.479,90.381,30.78137799]
[1770228574637,9.9683,90.477,90.381,30.78137799]
[1770228575336,29.84389511,90.503,90.381,30.78137799]
[1770228575731,29.84389511,90.503,90.384,30.78137799]
[1770228575934,9.9661,90.497,90.384,30.78137799]
[1770228576130,29.84389511,90.503,90.409,30.78137799]
[1770228577232,29.84389511,90.503,90.411,30.78137799]
[1770228577736,39.80929511,90.503,90.413,30.78137799]
[1770228578129,29.84389511,90.503,90.413,30.78137799]
[1770228578335,29.84389511,90.503,90.415,30.78137799]
[1770228579035,29.84389511,90.502,90.415,30.78137799]
[1770228579240,29.84389511,90.528,90.415,30.78137799]
[1770228579438,9.9629,90.526,90.432,9.9731]
[1770228579633,29.84389511,90.525,90.433,30.78137799]
[1770228580239,29.84389511,90.506,90.41,30.78137799]
[1770228580739,9.9672,90.487,90.41,30.78137799]
[1770228581140,39.81109511,90.487,90.41,30.78137799]
[1770228581439,29.84389511,90.487,90.41,30.78137799]
[1770228581842,29.84389511,90.486,90.382,30.78137799]
[1770228582634,29.84389511,90.478,90.382,30.78137799]
[1770228582942,29.84389511,90.478,90.384,30.78137799]
[1770228583439,29.84389511,90.478,90.386,30.78137799]
[1770228584841,29.84389511,90.478,90.36,30.65338529]
[1770228584842,29.84389511,90.478,90.389,30.78137799]
[1770228585337,29.84389511,90.478,90.36,30.65338529]
[1770228585338,29.84389511,90.478,90.391,30.78137799]
[1770228585944,29.84389511,90.478,90.363,32.70589064]
[1770228586139,29.84389511,90.478,90.363,30.78137799]
[1770228586642,29.84389511,90.467,90.367,30.78137799]
[1770228587243,29.84389511,90.449,90.367,30.78137799]
[1770228588343,29.84389511,90.444,90.343,1.92486393]
[1770228588545,29.84389511,90.429,90.33,25.0]
[1770228588749,29.84389511,90.409,90.33,25.0]
[1770228588951,29.84389511,90.406,90.33,55.78137799]
[1770228589147,29.84389511,90.449,90.331,30.78137799]
[1770228589343,29.84389511,90.436,90.331,30.78137799]
[1770228589545,29.84389511,90.436,90.353,9.9818]
[1770228589754,29.84389511,90.436,90.331,30.78137799]
[1770228590850,29.84389511,90.432,90.338,30.78137799]
[1770228591151,29.84389511,90.429,90.33,25.0]
[1770228591553,29.84389511,90.405,90.33,25.0]
[1770228592150,29.84389511,90.401,90.33,25.0]
[1770228592545,7.64109603,90.41,90.33,25.0]
[1770228592546,29.84389511,90.387,90.33,25.0]
[1770228593149,9.982,90.352,90.283,1.92605179]
[1770228593354,29.84389511,90.358,90.27,30.78137799]
[1770228594254,33.04135306,90.341,90.247,30.7626448]
[1770228595154,9.9864,90.313,90.247,30.7626448]
[1770228595351,33.04135306,90.341,90.247,30.7626448]
[1770228595547,9.9849,90.326,90.247,30.7626448]
[1770228595752,9.9849,90.326,90.249,30.7626448]
[1770228595952,33.04135306,90.341,90.249,30.7626448]
[1770228596253,33.04135306,90.369,90.261,30.7626448]
[1770228596647,9.9843,90.332,90.261,30.7626448]
[1770228596851,33.04135306,90.365,90.261,30.7626448]
[1770228597355,9.9851,90.324,90.261,30.7626448]
[1770228597760,33.04135306,90.365,90.261,30.7626448]
[1770228598455,30.828816,90.409,90.281,32.8249014]
[1770228599756,30.828816,90.409,90.321,32.8249014]
[1770228600253,9.9784,90.385,90.323,32.8249014]
[1770228600552,30.828816,90.409,90.323,32.8249014]
[1770228600757,9.9764,90.403,90.337,32.8249014]
[1770228601155,30.828816,90.426,90.337,32.8249014]
[1770228601956,9.9766,90.401,90.337,32.8249014]
[1770228602351,30.828816,90.426,90.337,32.8249014]
[1770228602661,30.828816,90.449,90.349,32.8249014]
[1770228602859,30.828816,90.486,90.349,32.8249014]